[Event "Titled Tuesday Blitz March 22 Late 2022"]
[White "Pinheiro, Iung Alicio de O."]
[Black "Gatterer, Florian"]
[WhiteFideId "2104350"]
[BlackFideId "811688"]
[WhiteElo "2519"]
[BlackElo "2218"]
[Result "1-0"]
[Round "11"]
[TimeControl "180+1"]
[Date "2022.03.22"]
[WhiteClock "0:01:16"]
[BlackClock "0:00:20"]

1. c4 {[%clk 0:02:59]}  c5 {[%clk 0:02:57]} 2. g3 {[%clk 0:02:54]}  g6 {[%clk 0:02:57]} 3. Bg2 {[%clk 0:02:53]}  Bg7 {[%clk 0:02:57]} 4. Nc3 {[%clk 0:02:52]}  Nc6 {[%clk 0:02:56]} 5. a3 {[%clk 0:02:45]}  h5 {[%clk 0:02:52]} 6. h3 {[%clk 0:02:37]}  d6 {[%clk 0:02:47]} 7. Rb1 {[%clk 0:02:35]}  a5 {[%clk 0:02:46]} 8. Nf3 {[%clk 0:02:32]}  Bf5 {[%clk 0:02:44]} 9. d3 {[%clk 0:02:30]}  Nf6 {[%clk 0:02:39]} 10. Bg5 {[%clk 0:02:25]}  Nh7 {[%clk 0:02:32]} 11. Bd2 {[%clk 0:02:24]}  Qd7 {[%clk 0:02:31]} 12. Nd5 {[%clk 0:02:21]}  Rd8 {[%clk 0:02:27]} 13. b4 {[%clk 0:02:19]}  axb4 {[%clk 0:02:23]} 14. axb4 {[%clk 0:02:20]}  e6 {[%clk 0:02:15]} 15. Nb6 {[%clk 0:01:57]}  Qc7 {[%clk 0:02:15]} 16. bxc5 {[%clk 0:01:55]}  dxc5 {[%clk 0:02:15]} 17. e4 {[%clk 0:01:50]}  Rxd3 {[%clk 0:01:53]} 18. exf5 {[%clk 0:01:50]}  gxf5 {[%clk 0:01:53]} 19. Qe2 {[%clk 0:01:43]}  Rd7 {[%clk 0:01:49]} 20. Bf4 {[%clk 0:01:40]}  e5 {[%clk 0:01:48]} 21. Be3 {[%clk 0:01:36]}  Nd4 {[%clk 0:01:25]} 22. Bxd4 {[%clk 0:01:34]}  Rxd4 {[%clk 0:01:24]} 23. Nxd4 {[%clk 0:01:32]}  cxd4 {[%clk 0:01:24]} 24. Nd5 {[%clk 0:01:30]}  Qd7 {[%clk 0:01:22]} 25. Rxb7 {[%clk 0:01:27]}  Qa4 {[%clk 0:01:22]} 26. Rb8+ {[%clk 0:01:23]}  Kd7 {[%clk 0:01:22]} 27. Nb6+ {[%clk 0:01:23]}  Ke6 {[%clk 0:01:23]} 28. Nxa4 {[%clk 0:01:22]}  Rxb8 {[%clk 0:01:23]} 29. Bd5+ {[%clk 0:01:22]}  Kf6 {[%clk 0:01:23]} 30. O-O {[%clk 0:01:23]}  Ng5 {[%clk 0:01:22]} 31. h4 {[%clk 0:01:19]}  Ne6 {[%clk 0:01:21]} 32. Bxe6 {[%clk 0:01:18]}  fxe6 {[%clk 0:01:22]} 33. Nc5 {[%clk 0:01:17]}  Bf8 {[%clk 0:01:20]} 34. Nd7+ {[%clk 0:01:17]}  Ke7 {[%clk 0:00:20]} 35. Nxb8 {[%clk 0:01:16]} 1-0


[Site "https://www.chess.com"]

[Event "Titled Tuesday Blitz March 22 Late 2022"]
[White "Romanchuk, Viktor"]
[Black "Elissalt Cardenas, Hector"]
[WhiteFideId "14109271"]
[BlackFideId "3500632"]
[WhiteElo "2242"]
[BlackElo "2159"]
[Result "0-1"]
[Round "11"]
[TimeControl "180+1"]
[Date "2022.03.22"]
[WhiteClock "0:00:42"]
[BlackClock "0:00:58"]

1. d4 {[%clk 0:03:00]}  d5 {[%clk 0:02:58]} 2. c4 {[%clk 0:03:00]}  e6 {[%clk 0:02:55]} 3. Nc3 {[%clk 0:03:00]}  Nf6 {[%clk 0:02:54]} 4. Nf3 {[%clk 0:03:01]}  c6 {[%clk 0:02:47]} 5. e3 {[%clk 0:03:00]}  Nbd7 {[%clk 0:02:44]} 6. Qc2 {[%clk 0:03:00]}  Bd6 {[%clk 0:02:39]} 7. b3 {[%clk 0:02:59]}  O-O {[%clk 0:02:36]} 8. Bb2 {[%clk 0:02:59]}  e5 {[%clk 0:02:32]} 9. dxe5 {[%clk 0:02:58]}  Nxe5 {[%clk 0:02:29]} 10. O-O-O {[%clk 0:02:58]}  Bg4 {[%clk 0:02:10]} 11. Be2 {[%clk 0:02:54]}  Qe7 {[%clk 0:02:03]} 12. h3 {[%clk 0:02:35]}  Bxf3 {[%clk 0:01:57]} 13. gxf3 {[%clk 0:02:34]}  dxc4 {[%clk 0:01:56]} 14. bxc4 {[%clk 0:02:11]}  Ba3 {[%clk 0:01:54]} 15. f4 {[%clk 0:02:08]}  Bxb2+ {[%clk 0:01:49]} 16. Qxb2 {[%clk 0:02:07]}  Ned7 {[%clk 0:01:49]} 17. Rhg1 {[%clk 0:02:05]}  Nc5 {[%clk 0:01:40]} 18. Qc2 {[%clk 0:01:58]}  Rad8 {[%clk 0:01:29]} 19. Rxd8 {[%clk 0:01:48]}  Rxd8 {[%clk 0:01:28]} 20. h4 {[%clk 0:01:43]}  Nce4 {[%clk 0:01:15]} 21. Nxe4 {[%clk 0:01:33]}  Nxe4 {[%clk 0:01:14]} 22. Bf3 {[%clk 0:01:20]}  Qa3+ {[%clk 0:01:12]} 23. Kb1 {[%clk 0:01:20]}  Rd2 {[%clk 0:01:00]} 24. Rd1 {[%clk 0:00:49]}  Nc3+ {[%clk 0:00:58]} 25. Ka1 {[%clk 0:00:43]}  Qxa2+ {[%clk 0:00:58]} 26. Qxa2 {[%clk 0:00:42]}  Rxa2# {[%clk 0:00:58]} 0-1


[Site "https://www.chess.com"]

[Event "Titled Tuesday Blitz March 22 Late 2022"]
[White "Sapunov, Evgeny"]
[Black "Jaskolka, Tomasz"]
[WhiteFideId "4126661"]
[BlackFideId "1170791"]
[WhiteElo "2470"]
[BlackElo "2073"]
[Result "1-0"]
[Round "11"]
[TimeControl "180+1"]
[Date "2022.03.22"]
[WhiteClock "0:02:09"]
[BlackClock "0:00:53"]

1. c4 {[%clk 0:03:00]}  e5 {[%clk 0:02:57]} 2. Nf3 {[%clk 0:03:00]}  Nc6 {[%clk 0:02:57]} 3. Nc3 {[%clk 0:03:01]}  Nf6 {[%clk 0:02:57]} 4. e3 {[%clk 0:03:01]}  d5 {[%clk 0:02:56]} 5. cxd5 {[%clk 0:03:01]}  Nxd5 {[%clk 0:02:57]} 6. Bb5 {[%clk 0:03:01]}  Nxc3 {[%clk 0:02:57]} 7. bxc3 {[%clk 0:03:01]}  Bd6 {[%clk 0:02:56]} 8. d4 {[%clk 0:03:01]}  exd4 {[%clk 0:02:56]} 9. cxd4 {[%clk 0:03:02]}  O-O {[%clk 0:02:56]} 10. O-O {[%clk 0:03:02]}  Bg4 {[%clk 0:02:54]} 11. h3 {[%clk 0:03:02]}  Bh5 {[%clk 0:02:55]} 12. Bb2 {[%clk 0:03:02]}  Qf6 {[%clk 0:02:47]} 13. Rc1 {[%clk 0:03:01]}  Bxf3 {[%clk 0:02:43]} 14. Qxf3 {[%clk 0:03:00]}  Qxf3 {[%clk 0:02:43]} 15. gxf3 {[%clk 0:03:00]}  Ne7 {[%clk 0:02:39]} 16. f4 {[%clk 0:02:55]}  f5 {[%clk 0:02:31]} 17. Kg2 {[%clk 0:02:50]}  g6 {[%clk 0:02:29]} 18. h4 {[%clk 0:02:50]}  c6 {[%clk 0:02:27]} 19. Bc4+ {[%clk 0:02:45]}  Nd5 {[%clk 0:02:27]} 20. Kf3 {[%clk 0:02:44]}  Rac8 {[%clk 0:02:22]} 21. h5 {[%clk 0:02:43]}  Kg7 {[%clk 0:02:22]} 22. Rh1 {[%clk 0:02:42]}  Kf6 {[%clk 0:02:08]} 23. Bb3 {[%clk 0:02:35]}  Rfe8 {[%clk 0:01:48]} 24. Rcg1 {[%clk 0:02:21]}  Bb4 {[%clk 0:01:25]} 25. Rc1 {[%clk 0:02:17]}  Bd2 {[%clk 0:01:16]} 26. Rc2 {[%clk 0:02:17]}  Bb4 {[%clk 0:01:02]} 27. a3 {[%clk 0:02:16]}  Bd6 {[%clk 0:01:01]} 28. Rcc1 {[%clk 0:02:14]}  Re4 {[%clk 0:00:59]} 29. Bxd5 {[%clk 0:02:10]}  cxd5 {[%clk 0:00:53]} 30. Rxc8 {[%clk 0:02:09]} 1-0


[Site "https://www.chess.com"]

[Event "Titled Tuesday Blitz March 22 Late 2022"]
[White "Spata, German"]
[Black "Adewumi, Tanitoluwa"]
[WhiteFideId "113026"]
[BlackFideId "30966396"]
[WhiteElo "2238"]
[BlackElo "2538"]
[Result "0-1"]
[Round "11"]
[TimeControl "180+1"]
[Date "2022.03.22"]
[WhiteClock "0:00:01"]
[BlackClock "0:00:03"]

1. Nf3 {[%clk 0:02:52]}  Nf6 {[%clk 0:02:58]} 2. b3 {[%clk 0:02:43]}  d6 {[%clk 0:02:57]} 3. d4 {[%clk 0:02:43]}  Bg4 {[%clk 0:02:57]} 4. e3 {[%clk 0:02:42]}  Nbd7 {[%clk 0:02:56]} 5. Be2 {[%clk 0:02:28]}  c6 {[%clk 0:02:48]} 6. O-O {[%clk 0:02:28]}  e5 {[%clk 0:02:48]} 7. dxe5 {[%clk 0:02:27]}  dxe5 {[%clk 0:02:45]} 8. Bb2 {[%clk 0:02:27]}  Bxf3 {[%clk 0:02:41]} 9. Bxf3 {[%clk 0:02:27]}  Qc7 {[%clk 0:02:35]} 10. c4 {[%clk 0:02:27]}  O-O-O {[%clk 0:02:34]} 11. Nc3 {[%clk 0:02:22]}  Bd6 {[%clk 0:02:21]} 12. g3 {[%clk 0:02:05]}  Rhe8 {[%clk 0:02:17]} 13. Qc2 {[%clk 0:02:04]}  Nc5 {[%clk 0:02:08]} 14. b4 {[%clk 0:01:58]}  Ne6 {[%clk 0:02:05]} 15. c5 {[%clk 0:01:58]}  Bf8 {[%clk 0:01:59]} 16. Rad1 {[%clk 0:01:55]}  Rxd1 {[%clk 0:01:50]} 17. Rxd1 {[%clk 0:01:54]}  Rd8 {[%clk 0:01:51]} 18. Rxd8+ {[%clk 0:01:51]}  Qxd8 {[%clk 0:01:52]} 19. Ne4 {[%clk 0:01:48]}  Nd7 {[%clk 0:01:11]} 20. Bg4 {[%clk 0:01:32]}  Qe8 {[%clk 0:01:04]} 21. Qd2 {[%clk 0:01:21]}  g6 {[%clk 0:00:58]} 22. Nd6+ {[%clk 0:01:14]}  Bxd6 {[%clk 0:00:58]} 23. Qxd6 {[%clk 0:01:15]}  f5 {[%clk 0:00:59]} 24. Be2 {[%clk 0:01:12]}  e4 {[%clk 0:00:46]} 25. Bc4 {[%clk 0:01:08]}  Ng5 {[%clk 0:00:44]} 26. b5 {[%clk 0:00:39]}  cxb5 {[%clk 0:00:21]} 27. Bxb5 {[%clk 0:00:39]}  Qe6 {[%clk 0:00:17]} 28. Bxd7+ {[%clk 0:00:30]}  Qxd7 {[%clk 0:00:17]} 29. Qf8+ {[%clk 0:00:25]}  Kc7 {[%clk 0:00:17]} 30. Be5+ {[%clk 0:00:19]}  Kc6 {[%clk 0:00:17]} 31. Qf6+ {[%clk 0:00:19]}  Ne6 {[%clk 0:00:17]} 32. Bd6 {[%clk 0:00:18]}  b6 {[%clk 0:00:16]} 33. Bf8 {[%clk 0:00:11]}  bxc5 {[%clk 0:00:13]} 34. a4 {[%clk 0:00:07]}  Qd1+ {[%clk 0:00:12]} 35. Kg2 {[%clk 0:00:06]}  Qd7 {[%clk 0:00:04]} 36. Kg1 {[%clk 0:00:05]}  c4 {[%clk 0:00:02]} 37. Bb4 {[%clk 0:00:05]}  a6 {[%clk 0:00:02]} 38. Bc3 {[%clk 0:00:05]}  Kc7 {[%clk 0:00:02]} 39. Be5+ {[%clk 0:00:04]}  Kc6 {[%clk 0:00:02]} 40. Qh8 {[%clk 0:00:04]}  Qd1+ {[%clk 0:00:02]} 41. Kg2 {[%clk 0:00:04]}  Qf3+ {[%clk 0:00:03]} 42. Kg1 {[%clk 0:00:05]}  Qd1+ {[%clk 0:00:03]} 43. Kg2 {[%clk 0:00:05]}  Qd7 {[%clk 0:00:03]} 44. Qa8+ {[%clk 0:00:04]}  Qb7 {[%clk 0:00:02]} 45. Qe8+ {[%clk 0:00:04]}  Qd7 {[%clk 0:00:02]} 46. Qa8+ {[%clk 0:00:04]}  Kc5 {[%clk 0:00:03]} 47. Qxa6 {[%clk 0:00:04]}  Qc6 {[%clk 0:00:01]} 48. Bd4+ {[%clk 0:00:02]}  Nxd4 {[%clk 0:00:01]} 49. exd4+ {[%clk 0:00:02]}  Kd5 {[%clk 0:00:02]} 50. Qa5+ {[%clk 0:00:01]}  Kxd4 {[%clk 0:00:03]} 51. Qd2+ {[%clk 0:00:01]}  Ke5 {[%clk 0:00:03]} 52. Qc3+ {[%clk 0:00:02]}  Ke6 {[%clk 0:00:03]} 53. a5 {[%clk 0:00:03]}  e3+ {[%clk 0:00:02]} 54. Kf1 {[%clk 0:00:02]}  exf2 {[%clk 0:00:02]} 55. Kxf2 {[%clk 0:00:03]}  Qc5+ {[%clk 0:00:02]} 56. Ke2 {[%clk 0:00:03]}  Kd5 {[%clk 0:00:03]} 57. a6 {[%clk 0:00:03]}  Qe7+ {[%clk 0:00:03]} 58. Qe3 {[%clk 0:00:01]}  Qb4 {[%clk 0:00:02]} 59. Qf3+ {[%clk 0:00:01]}  Kc5 {[%clk 0:00:02]} 60. Qe3+ {[%clk 0:00:01]}  Kb5 {[%clk 0:00:02]} 61. a7 {[%clk 0:00:02]}  Qb2+ {[%clk 0:00:02]} 62. Kf3 {[%clk 0:00:03]}  Qxh2 {[%clk 0:00:03]} 63. a8=Q {[%clk 0:00:02]}  Qh1+ {[%clk 0:00:03]} 64. Kf4 {[%clk 0:00:02]}  Qxa8 {[%clk 0:00:04]} 65. Qe8+ {[%clk 0:00:01]}  Qxe8 {[%clk 0:00:03]} 66. Kg5 {[%clk 0:00:01]}  c3 {[%clk 0:00:03]} 0-1


[Site "https://www.chess.com"]

[Event "Titled Tuesday Blitz March 22 Late 2022"]
[White "Taboas Rodriguez, Daniel"]
[Black "Gabrielian, Artur"]
[WhiteFideId "2208466"]
[BlackFideId "4131002"]
[WhiteElo "2429"]
[BlackElo "2440"]
[Result "1-0"]
[Round "11"]
[TimeControl "180+1"]
[Date "2022.03.22"]
[WhiteClock "0:03:05"]
[BlackClock "0:00:10"]

1. d4 {[%clk 0:02:59]}  Nf6 {[%clk 0:02:59]} 2. Nf3 {[%clk 0:03:00]}  g6 {[%clk 0:02:59]} 3. c4 {[%clk 0:03:00]}  Bg7 {[%clk 0:02:59]} 4. Nc3 {[%clk 0:03:00]}  O-O {[%clk 0:02:59]} 5. e4 {[%clk 0:03:01]}  d6 {[%clk 0:02:59]} 6. Be2 {[%clk 0:03:02]}  e5 {[%clk 0:02:59]} 7. dxe5 {[%clk 0:03:03]}  dxe5 {[%clk 0:02:59]} 8. Qxd8 {[%clk 0:03:04]}  Rxd8 {[%clk 0:02:59]} 9. Bg5 {[%clk 0:03:04]}  Re8 {[%clk 0:02:54]} 10. Nd5 {[%clk 0:03:05]}  Nxd5 {[%clk 0:02:55]} 11. cxd5 {[%clk 0:03:06]}  c6 {[%clk 0:02:54]} 12. Bc4 {[%clk 0:03:06]}  b5 {[%clk 0:02:50]} 13. Bb3 {[%clk 0:03:06]}  Bb7 {[%clk 0:02:34]} 14. Rc1 {[%clk 0:03:06]}  a5 {[%clk 0:02:27]} 15. a3 {[%clk 0:03:06]}  a4 {[%clk 0:00:10]} 16. Ba2 {[%clk 0:03:05]} 1-0


[Site "https://www.chess.com"]

[Event "Titled Tuesday Blitz March 22 Late 2022"]
[White "Vine, Elzbieta"]
[Black "Cramling Bellon, Anna"]
[WhiteFideId "1119320"]
[BlackFideId "32009232"]
[WhiteElo "1842"]
[BlackElo "1905"]
[Result "0-1"]
[Round "11"]
[TimeControl "180+1"]
[Date "2022.03.22"]
[WhiteClock "0:00:42"]
[BlackClock "0:00:28"]

1. e4 {[%clk 0:03:00]}  c5 {[%clk 0:02:59]} 2. Nf3 {[%clk 0:02:59]}  e6 {[%clk 0:02:58]} 3. d4 {[%clk 0:02:58]}  cxd4 {[%clk 0:02:59]} 4. Nxd4 {[%clk 0:02:57]}  Nc6 {[%clk 0:03:00]} 5. Nc3 {[%clk 0:02:56]}  a6 {[%clk 0:02:57]} 6. Be3 {[%clk 0:02:51]}  Qc7 {[%clk 0:02:53]} 7. f4 {[%clk 0:02:42]}  Bb4 {[%clk 0:02:50]} 8. Qd2 {[%clk 0:02:37]}  Nf6 {[%clk 0:02:49]} 9. Bd3 {[%clk 0:02:33]}  Ng4 {[%clk 0:02:44]} 10. O-O {[%clk 0:02:25]}  Nxe3 {[%clk 0:02:41]} 11. Qxe3 {[%clk 0:02:24]}  Nxd4 {[%clk 0:02:41]} 12. a3 {[%clk 0:01:59]}  Bc5 {[%clk 0:02:29]} 13. Kh1 {[%clk 0:01:42]}  Nxc2 {[%clk 0:02:26]} 14. Qg3 {[%clk 0:01:40]}  Nxa1 {[%clk 0:02:13]} 15. Qxg7 {[%clk 0:01:39]}  Rf8 {[%clk 0:02:08]} 16. Re1 {[%clk 0:01:37]}  Nb3 {[%clk 0:01:51]} 17. Nd5 {[%clk 0:01:34]}  exd5 {[%clk 0:01:49]} 18. exd5+ {[%clk 0:01:34]}  Be7 {[%clk 0:01:50]} 19. f5 {[%clk 0:01:27]}  Qa5 {[%clk 0:01:13]} 20. Re2 {[%clk 0:01:23]}  Qc5 {[%clk 0:00:59]} 21. h3 {[%clk 0:01:01]}  f6 {[%clk 0:00:56]} 22. d6 {[%clk 0:00:53]}  Qxd6 {[%clk 0:00:54]} 23. Bc4 {[%clk 0:00:51]}  Qd1+ {[%clk 0:00:52]} 24. Kh2 {[%clk 0:00:50]}  Qxe2 {[%clk 0:00:51]} 25. Bxe2 {[%clk 0:00:49]}  Nd4 {[%clk 0:00:45]} 26. Bh5+ {[%clk 0:00:47]}  Kd8 {[%clk 0:00:42]} 27. Qxh7 {[%clk 0:00:46]}  d5 {[%clk 0:00:35]} 28. Qg6 {[%clk 0:00:45]}  Bxf5 {[%clk 0:00:33]} 29. Qg3 {[%clk 0:00:44]}  Kd7 {[%clk 0:00:28]} 30. Qf4 {[%clk 0:00:42]}  Bd6 {[%clk 0:00:28]} 0-1


[Site "https://www.chess.com"]

[Event "Titled Tuesday Blitz March 22 Late 2022"]
[White "Vusatiuk, Vladimir"]
[Black "Celestino, Rafael Teixeira"]
[WhiteFideId "14118610"]
[BlackFideId "2108925"]
[WhiteElo "2157"]
[BlackElo "2323"]
[Result "1-0"]
[Round "11"]
[TimeControl "180+1"]
[Date "2022.03.22"]
[WhiteClock "0:00:11"]
[BlackClock "0:00:33"]

1. d4 {[%clk 0:03:00]}  Nf6 {[%clk 0:02:59]} 2. Bg5 {[%clk 0:03:00]}  h6 {[%clk 0:02:58]} 3. Bxf6 {[%clk 0:03:00]}  gxf6 {[%clk 0:02:59]} 4. e4 {[%clk 0:03:01]}  d5 {[%clk 0:02:57]} 5. exd5 {[%clk 0:03:00]}  Qxd5 {[%clk 0:02:58]} 6. Nc3 {[%clk 0:03:00]}  Qa5 {[%clk 0:02:58]} 7. Nf3 {[%clk 0:02:51]}  Rg8 {[%clk 0:02:49]} 8. g3 {[%clk 0:02:50]}  Bg4 {[%clk 0:02:49]} 9. Bg2 {[%clk 0:02:49]}  Qb4 {[%clk 0:02:50]} 10. Qd2 {[%clk 0:02:41]}  Nc6 {[%clk 0:02:49]} 11. O-O-O {[%clk 0:02:00]}  O-O-O {[%clk 0:02:47]} 12. d5 {[%clk 0:01:55]}  Na5 {[%clk 0:02:47]} 13. a3 {[%clk 0:01:52]}  Qb6 {[%clk 0:02:46]} 14. Qf4 {[%clk 0:01:50]}  h5 {[%clk 0:02:36]} 15. h3 {[%clk 0:01:44]}  f5 {[%clk 0:02:31]} 16. Kb1 {[%clk 0:01:32]}  Bh6 {[%clk 0:02:20]} 17. Qd4 {[%clk 0:01:29]}  Bxf3 {[%clk 0:02:09]} 18. Bxf3 {[%clk 0:01:25]}  h4 {[%clk 0:02:01]} 19. g4 {[%clk 0:01:09]}  fxg4 {[%clk 0:01:39]} 20. Bxg4+ {[%clk 0:01:10]}  Kb8 {[%clk 0:01:37]} 21. Qxb6 {[%clk 0:00:53]}  axb6 {[%clk 0:01:38]} 22. Rhe1 {[%clk 0:00:53]}  Bg5 {[%clk 0:01:36]} 23. f4 {[%clk 0:00:43]}  Bf6 {[%clk 0:01:22]} 24. Ne4 {[%clk 0:00:41]}  Bh8 {[%clk 0:01:23]} 25. Ng5 {[%clk 0:00:35]}  Nc4 {[%clk 0:01:23]} 26. Nxf7 {[%clk 0:00:33]}  Nxb2 {[%clk 0:01:10]} 27. Rd2 {[%clk 0:00:24]}  Rdf8 {[%clk 0:01:02]} 28. Nxh8 {[%clk 0:00:22]}  Nc4 {[%clk 0:01:01]} 29. Rd4 {[%clk 0:00:20]}  Nxa3+ {[%clk 0:00:59]} 30. Kb2 {[%clk 0:00:18]}  Nb5 {[%clk 0:01:00]} 31. Rb4 {[%clk 0:00:18]}  c6 {[%clk 0:00:59]} 32. dxc6 {[%clk 0:00:16]}  bxc6 {[%clk 0:01:00]} 33. Bf3 {[%clk 0:00:11]}  Rxh8 {[%clk 0:00:55]} 34. Bxc6 {[%clk 0:00:11]}  Nd6 {[%clk 0:00:55]} 35. Rxe7 {[%clk 0:00:10]}  Nc8 {[%clk 0:00:39]} 36. Rb7+ {[%clk 0:00:09]}  Ka8 {[%clk 0:00:39]} 37. R7xb6+ {[%clk 0:00:09]}  Ka7 {[%clk 0:00:38]} 38. Rb7+ {[%clk 0:00:10]}  Ka8 {[%clk 0:00:33]} 39. Ra4+ {[%clk 0:00:11]}  Na7 {[%clk 0:00:33]} 40. Raxa7# {[%clk 0:00:11]} 1-0


[Site "https://www.chess.com"]

[Event "Titled Tuesday Blitz March 22 Late 2022"]
[White "Yoo, Christopher Woojin"]
[Black "Kosteniuk, Alexandra"]
[WhiteFideId "30909694"]
[BlackFideId "4128125"]
[WhiteElo "2105"]
[BlackElo "2469"]
[Result "1-0"]
[Round "11"]
[TimeControl "180+1"]
[Date "2022.03.22"]
[WhiteClock "0:02:33"]
[BlackClock "0:02:23"]

1. d4 {[%clk 0:03:00]}  Nf6 {[%clk 0:02:59]} 2. Nf3 {[%clk 0:03:01]}  d5 {[%clk 0:03:00]} 3. Bf4 {[%clk 0:03:02]}  c5 {[%clk 0:03:00]} 4. e3 {[%clk 0:03:02]}  Nc6 {[%clk 0:03:00]} 5. Nbd2 {[%clk 0:03:03]}  Qb6 {[%clk 0:02:58]} 6. dxc5 {[%clk 0:03:01]}  Qxb2 {[%clk 0:02:58]} 7. Rb1 {[%clk 0:03:00]}  Qc3 {[%clk 0:02:52]} 8. Bb5 {[%clk 0:03:00]}  g6 {[%clk 0:02:44]} 9. O-O {[%clk 0:02:54]}  Bg7 {[%clk 0:02:44]} 10. Nb3 {[%clk 0:02:37]}  Ne4 {[%clk 0:02:36]} 11. Qxd5 {[%clk 0:02:34]}  Nf6 {[%clk 0:02:23]} 12. Bxc6+ {[%clk 0:02:33]} 1-0


[Site "https://www.chess.com"]

[Event "Titled Tuesday Blitz March 22 Late 2022"]
[White "Zanette, Edgard Vinicius"]
[Black "Mirza, Diana"]
[WhiteFideId "2109263"]
[BlackFideId "2503999"]
[WhiteElo "2182"]
[BlackElo "1813"]
[Result "0-1"]
[Round "11"]
[TimeControl "180+1"]
[Date "2022.03.22"]
[WhiteClock "0:00:02"]
[BlackClock "0:00:07"]

1. e4 {[%clk 0:03:00]}  c5 {[%clk 0:02:40]} 2. Nc3 {[%clk 0:03:00]}  e6 {[%clk 0:02:39]} 3. g3 {[%clk 0:02:59]}  g6 {[%clk 0:02:39]} 4. Bg2 {[%clk 0:02:59]}  Bg7 {[%clk 0:02:40]} 5. d3 {[%clk 0:02:59]}  Ne7 {[%clk 0:02:41]} 6. Be3 {[%clk 0:02:59]}  Nbc6 {[%clk 0:02:42]} 7. Bxc5 {[%clk 0:02:59]}  O-O {[%clk 0:02:42]} 8. Be3 {[%clk 0:02:56]}  d5 {[%clk 0:02:36]} 9. exd5 {[%clk 0:02:56]}  exd5 {[%clk 0:02:32]} 10. d4 {[%clk 0:02:56]}  Be6 {[%clk 0:02:28]} 11. Nge2 {[%clk 0:02:50]}  Nf5 {[%clk 0:02:28]} 12. O-O {[%clk 0:02:38]}  Nxe3 {[%clk 0:02:27]} 13. fxe3 {[%clk 0:02:38]}  Qg5 {[%clk 0:02:26]} 14. Nf4 {[%clk 0:02:36]}  Bg4 {[%clk 0:02:25]} 15. Qd2 {[%clk 0:02:33]}  h5 {[%clk 0:01:40]} 16. h4 {[%clk 0:02:24]}  Qd8 {[%clk 0:01:29]} 17. Ncxd5 {[%clk 0:02:22]}  Rc8 {[%clk 0:01:24]} 18. c4 {[%clk 0:02:16]}  Ne7 {[%clk 0:01:16]} 19. Nxe7+ {[%clk 0:02:06]}  Qxe7 {[%clk 0:01:17]} 20. Nd5 {[%clk 0:02:05]}  Qd6 {[%clk 0:01:10]} 21. c5 {[%clk 0:01:51]}  Qxg3 {[%clk 0:01:08]} 22. Ne7+ {[%clk 0:01:50]}  Kh7 {[%clk 0:01:04]} 23. Nxc8 {[%clk 0:01:51]}  Bxc8 {[%clk 0:00:54]} 24. Qf2 {[%clk 0:01:49]}  Qg4 {[%clk 0:00:50]} 25. Qf4 {[%clk 0:01:43]}  Qe6 {[%clk 0:00:45]} 26. d5 {[%clk 0:01:35]}  Qe7 {[%clk 0:00:38]} 27. d6 {[%clk 0:01:27]}  Qe6 {[%clk 0:00:38]} 28. Rae1 {[%clk 0:01:22]}  Bh6 {[%clk 0:00:38]} 29. Qd4 {[%clk 0:01:15]}  Bg7 {[%clk 0:00:36]} 30. Qd5 {[%clk 0:01:10]}  Qg4 {[%clk 0:00:26]} 31. Rf4 {[%clk 0:00:58]}  Qg3 {[%clk 0:00:24]} 32. Re2 {[%clk 0:00:46]}  Bg4 {[%clk 0:00:20]} 33. Rxg4 {[%clk 0:00:38]}  Qxg4 {[%clk 0:00:19]} 34. Qf3 {[%clk 0:00:31]}  Qxh4 {[%clk 0:00:18]} 35. Qxb7 {[%clk 0:00:29]}  Qg4 {[%clk 0:00:14]} 36. Qf3 {[%clk 0:00:28]}  Qe6 {[%clk 0:00:13]} 37. b4 {[%clk 0:00:26]}  Be5 {[%clk 0:00:11]} 38. Qd5 {[%clk 0:00:22]}  Qg4 {[%clk 0:00:11]} 39. Rf2 {[%clk 0:00:20]}  f6 {[%clk 0:00:10]} 40. d7 {[%clk 0:00:17]}  Rd8 {[%clk 0:00:09]} 41. c6 {[%clk 0:00:15]}  Bc7 {[%clk 0:00:08]} 42. Qe4 {[%clk 0:00:13]}  Qg3 {[%clk 0:00:08]} 43. Qf3 {[%clk 0:00:11]}  Qh2+ {[%clk 0:00:08]} 44. Kf1 {[%clk 0:00:12]}  Qe5 {[%clk 0:00:07]} 45. Qxf6 {[%clk 0:00:10]}  Qxf6 {[%clk 0:00:08]} 46. Rxf6 {[%clk 0:00:10]}  Kg7 {[%clk 0:00:09]} 47. Rf2 {[%clk 0:00:08]}  g5 {[%clk 0:00:09]} 48. Bd5 {[%clk 0:00:08]}  h4 {[%clk 0:00:08]} 49. Rf7+ {[%clk 0:00:07]}  Kg6 {[%clk 0:00:08]} 50. Kg2 {[%clk 0:00:06]}  g4 {[%clk 0:00:08]} 51. Re7 {[%clk 0:00:05]}  h3+ {[%clk 0:00:08]} 52. Kh1 {[%clk 0:00:05]}  g3 {[%clk 0:00:08]} 53. Bf3 {[%clk 0:00:02]}  g2+ {[%clk 0:00:07]} 0-1


[Site "https://www.chess.com"]

[Event "Titled Tuesday Blitz March 22 Late 2022"]
[White "Zherebtsova, Alexandra"]
[Black "Rosen, Eric"]
[WhiteFideId "24129518"]
[BlackFideId "2032562"]
[WhiteElo "2025"]
[BlackElo "2362"]
[Result "0-1"]
[Round "11"]
[TimeControl "180+1"]
[Date "2022.03.22"]
[WhiteClock "0:01:00"]
[BlackClock "0:00:12"]

1. d4 {[%clk 0:02:58]}  d5 {[%clk 0:02:55]} 2. Nf3 {[%clk 0:02:57]}  Nf6 {[%clk 0:02:55]} 3. c4 {[%clk 0:02:57]}  e6 {[%clk 0:02:55]} 4. e3 {[%clk 0:02:57]}  Be7 {[%clk 0:02:50]} 5. Nbd2 {[%clk 0:02:57]}  O-O {[%clk 0:02:50]} 6. b3 {[%clk 0:02:57]}  c5 {[%clk 0:02:39]} 7. Bd3 {[%clk 0:02:53]}  Nc6 {[%clk 0:02:35]} 8. Bb2 {[%clk 0:02:52]}  Qc7 {[%clk 0:02:19]} 9. cxd5 {[%clk 0:02:46]}  Nxd5 {[%clk 0:02:11]} 10. Rc1 {[%clk 0:02:46]}  cxd4 {[%clk 0:02:09]} 11. Nxd4 {[%clk 0:02:46]}  Bd7 {[%clk 0:02:09]} 12. O-O {[%clk 0:02:37]}  Bf6 {[%clk 0:01:59]} 13. Bb1 {[%clk 0:02:31]}  Qd8 {[%clk 0:01:28]} 14. Ne4 {[%clk 0:02:27]}  Bxd4 {[%clk 0:01:23]} 15. Bxd4 {[%clk 0:02:21]}  Nxd4 {[%clk 0:01:24]} 16. Qxd4 {[%clk 0:02:21]}  Bc6 {[%clk 0:01:24]} 17. Nc5 {[%clk 0:02:12]}  Qg5 {[%clk 0:01:16]} 18. f4 {[%clk 0:01:56]}  Nxf4 {[%clk 0:01:11]} 19. Qd2 {[%clk 0:01:43]}  Nxg2 {[%clk 0:01:00]} 20. Be4 {[%clk 0:01:28]}  Qxe3+ {[%clk 0:00:27]} 21. Qxe3 {[%clk 0:01:26]}  Nxe3 {[%clk 0:00:28]} 22. Bxc6 {[%clk 0:01:24]}  bxc6 {[%clk 0:00:22]} 23. Rf3 {[%clk 0:01:17]}  Nd5 {[%clk 0:00:22]} 24. Nd7 {[%clk 0:01:13]}  Rfc8 {[%clk 0:00:20]} 25. Ne5 {[%clk 0:01:10]}  f6 {[%clk 0:00:18]} 26. Nxc6 {[%clk 0:01:09]}  Rc7 {[%clk 0:00:17]} 27. Rf2 {[%clk 0:01:05]}  Rac8 {[%clk 0:00:16]} 28. Rfc2 {[%clk 0:01:05]}  Kf7 {[%clk 0:00:16]} 29. Kf2 {[%clk 0:01:04]}  Ke8 {[%clk 0:00:13]} 30. Ke2 {[%clk 0:01:00]}  Kd7 {[%clk 0:00:13]} 31. Nd4 {[%clk 0:00:59]}  Rxc2+ {[%clk 0:00:12]} 32. Rxc2 {[%clk 0:00:59]}  Rxc2+ {[%clk 0:00:13]} 33. Nxc2 {[%clk 0:01:00]}  Nc3+ {[%clk 0:00:12]} 0-1


[Site "https://www.chess.com"]